Workbook

Sheet Welcome

Sheet Temp Admin (hidden)
J5: FALSE

Sheet ClientsData (hidden)
E10: ClientID | F10: CompanyName | G10: ContactName | H10: Email | I10: Phone | J10: Addr1 | K10: Addr2 | L10: City | M10: State | N10: Postal | O10: Country | P10: DefaultTermsDays | Q10: Notes | R10: Active | S10: CreatedDate

Sheet ProductsData (hidden)
E10: ProductID | F10: SKU | G10: Category | H10: Description | I10: UnitCost | J10: UnitPrice | K10: DefaultPricingMode | L10: DefaultMarkupValue | M10: Taxable | N10: Active | O10: CreatedDate

Sheet DocsData (hidden)
E2: Documents - system data, do not edit
E10: DocID | F10: DocType | G10: DocNumber | H10: NumberIsManual | I10: SourceDocID | J10: ClientID | K10: DocDate | L10: DueDate | M10: Status | N10: ShipToSame | O10: ShipToName | P10: ShipToAddr1 | Q10: ShipToAddr2 | R10: ShipToCity | S10: ShipToState | T10: ShipToPostal | U10: ShipToCountry | V10: TaxRate | W10: TaxLabel | X10: DiscountMode | Y10: DiscountValue | Z10: ShippingAmount | AA10: AdjustmentLabel | AB10: AdjustmentAmount | AC10: Subtotal | AD10: DiscountCalc | AE10: TaxCalc | AF10: GrandTotal | AG10: ShowItemName | AH10: ShowItemDesc | AI10: ShowUnits | AJ10: ShowPrice | AK10: ShowAmount | AL10: ItemsLabel | AM10: UnitsLabel | AN10: PriceLabel | AO10: AmountLabel | AP10: TermsText | AQ10: InternalNotes | AR10: Locked | AS10: RevisionNum | AT10: CreatedDate | AU10: ModifiedDate | AV10: HideDiscount | AW10: HideTax | AX10: HideShipping | AY10: HideAdjustment | AZ10: MarginMode | BA10: BlanketMarginPct | BB10: ShippingTaxable | BC10: AdjustmentTaxable | BD10: ShowLinePrices | BE10: SubtotalOverride | BF10: ShowSKU

Sheet LinesData (hidden)
E2: Document lines - system data, do not edit
E10: LineID | F10: DocID | G10: LineSeq | H10: ProductID | I10: SKU | J10: Description | K10: Qty | L10: UnitCost | M10: PricingMode | N10: MarkupValue | O10: UnitPrice | P10: Taxable | Q10: LineTotal

Sheet PayData (hidden)
E2: Payments - system data, do not edit
E10: PaymentID | F10: DocID | G10: PayDate | H10: Amount | I10: Method | J10: Reference | K10: Notes

Sheet EmailData (hidden)
E2: Email log - system data, do not edit
E10: EmailID | F10: DocID | G10: SentDate | H10: ToAddr | I10: CCAddr | J10: BCCAddr | K10: Subject | L10: TemplateUsed | M10: Method | N10: Status
E11: 1 | F11: 165 | G11: 2026-07-24T13:10:06 | K11: Quote DEMO-Q-165 from LGPSM 11 | L11: Quote | M11: Default email app | N11: Drafted
E12: 2 | F12: 999 | G12: 2026-07-24T13:10:30 | H12: test@test.com | K12: diag | L12: Quote | M12: Desktop Outlook | N12: Drafted
E13: 3 | F13: 165 | G13: 2026-07-24T13:12:42 | K13: Quote DEMO-Q-165 from LGPSM 11 | L13: Quote | M13: Desktop Outlook | N13: Drafted
E14: 4 | F14: 165 | G14: 2026-07-24T13:29:38 | K14: Quote DEMO-Q-165 from LGPSM 11 | L14: Quote | M14: Desktop Outlook | N14: Drafted
E15: 5 | F15: 165 | G15: 2026-07-24T13:30:07 | K15: Quote DEMO-Q-165 from LGPSM 11 | L15: Quote | M15: Desktop Outlook | N15: Drafted
E16: 6 | F16: 165 | G16: 2026-07-24T13:34:53 | K16: Quote DEMO-Q-165 from LGPSM 11 | L16: Quote | M16: Desktop Outlook | N16: Drafted
E17: 7 | F17: 165 | G17: 2026-07-24T13:57:50 | K17: Quote DEMO-Q-165 from LGPSM 11 | L17: Quote | M17: Default email app | N17: Drafted
E18: 8 | F18: 11 | G18: 2026-07-24T15:18:51 | H18: sergio@mtnviewcafe.com | K18: 33 | L18: Invoice | M18: Default email app | N18: Drafted
E19: 9 | F19: 11 | G19: 2026-07-24T15:34:13 | H19: sergio@mtnviewcafe.com | K19: 33 | L19: Invoice | M19: Default email app | N19: Drafted
E20: 10 | F20: 11 | G20: 2026-07-24T15:37:38 | H20: sergio@mtnviewcafe.com | K20: 33 | L20: Invoice | M20: Default email app | N20: Drafted
E21: 11 | F21: 152 | G21: 2026-07-24T15:44:21 | H21: lucia@greenfieldscapes.com | K21: 33 | L21: Invoice | M21: Default email app | N21: Drafted
E22: 12 | F22: 152 | G22: 2026-07-24T15:44:32 | H22: lucia@greenfieldscapes.com | K22: 33 | L22: Invoice | M22: Default email app | N22: Drafted
E23: 13 | F23: 11 | G23: 2026-07-24T15:45:50 | H23: sergio@mtnviewcafe.com | K23: Reminder: Invoice INV-1002 from LGPSM is overdue | L23: Reminder | M23: Default email app | N23: Drafted
E24: 14 | F24: 171 | G24: 2026-07-24T15:47:20 | H24: yusuf@lakelandoffice.com | K24: 33 | L24: Invoice | M24: Default email app | N24: Drafted
E25: 15 | F25: 154 | G25: 2026-07-24T15:48:50 | H25: jane@email.com | K25: 33 | L25: Invoice | M25: Default email app | N25: Drafted
E26: 16 | F26: 154 | G26: 2026-07-24T15:49:03 | H26: jane@email.com | K26: 33 | L26: Invoice | M26: Default email app | N26: Drafted
E27: 17 | F27: 152 | G27: 2026-07-24T15:49:30 | H27: lucia@greenfieldscapes.com | K27: 33 | L27: Invoice | M27: Default email app | N27: Drafted
E28: 18 | F28: 152 | G28: 2026-07-24T15:50:34 | H28: lucia@greenfieldscapes.com | K28: Reminder: Invoice DEMO-INV-152 from LGPSM is overdue | L28: Reminder | M28: Default email app | N28: Drafted
E29: 19 | F29: 171 | G29: 2026-07-27T11:32:26 | H29: yusuf@lakelandoffice.com | K29: 33 | L29: Invoice | M29: Default email app | N29: Drafted
E30: 20 | F30: 171 | G30: 2026-07-27T11:32:38 | H30: yusuf@lakelandoffice.com | K30: 33 | L30: Invoice | M30: Default email app | N30: Drafted
E31: 21 | F31: 170 | G31: 2026-07-27T11:40:01 | H31: tom@harborpointre.com | K31: 33 | L31: Invoice | M31: Desktop Outlook | N31: Drafted
E32: 22 | F32: 14 | G32: 2026-07-27T13:14:01 | H32: priya@sunrisedental.com | K32: Reminder: Invoice INV-1005 from LGPSM is overdue | L32: Reminder | M32: Desktop Outlook | N32: Drafted
E33: 23 | F33: 152 | G33: 2026-07-27T13:15:51 | H33: lucia@greenfieldscapes.com | K33: Reminder: Invoice DEMO-INV-152 from LGPSM is overdue | L33: Reminder | M33: Desktop Outlook | N33: Drafted
E34: 24 | F34: 14 | G34: 2026-07-27T15:05:34 | H34: priya@sunrisedental.com | K34: Reminder: Invoice INV-1005 from LGPSM is overdue | L34: Reminder | M34: Desktop Outlook | N34: Drafted
E35: 25 | F35: 14 | G35: 2026-07-27T17:49:00 | H35: priya@sunrisedental.com | K35: Reminder: Invoice INV-1005 from LGPSM is overdue | L35: Reminder | M35: Default email app | N35: Drafted

Sheet LabelsData (hidden)
E2: Labels - system data, do not edit
E10: LabelKey | F10: DefaultText | G10: UserText | H10: Text_en | I10: Text_es | J10: Text_fr | K10: Text_de | L10: Text_it | M10: Text_pl
E11: QUOTE_TITLE | F11: Quote | H11: Quote | I11: Presupuesto | J11: Devis | K11: Angebot | L11: Preventivo | M11: Oferta
E12: INVOICE_TITLE | F12: Invoice | H12: Invoice | I12: Factura | J12: Facture | K12: Rechnung | L12: Fattura | M12: Faktura
E13: BILL_TO | F13: Bill To | H13: Bill To | I13: Facturar a | J13: Facturer à | K13: Rechnung an | L13: Fatturare a | M13: Nabywca
E14: SHIP_TO | F14: Ship To | H14: Ship To | I14: Enviar a | J14: Livrer à | K14: Lieferung an | L14: Spedire a | M14: Odbiorca
E15: DOC_NUMBER | F15: Number | H15: Number | I15: Número | J15: Numéro | K15: Nummer | L15: Numero | M15: Numer
E16: DOC_DATE | F16: Date | H16: Date | I16: Fecha | J16: Date | K16: Datum | L16: Data | M16: Data
E17: DUE_DATE | F17: Due Date | H17: Due Date | I17: Fecha de vencimiento | J17: Date d'échéance | K17: Fälligkeitsdatum | L17: Scadenza | M17: Termin płatności
E18: VALID_UNTIL | F18: Valid Until | H18: Valid Until | I18: Válido hasta | J18: Valable jusqu'au | K18: Gültig bis | L18: Valido fino al | M18: Ważne do
E19: SUBTOTAL | F19: Subtotal | H19: Subtotal | I19: Subtotal | J19: Sous-total | K19: Zwischensumme | L19: Subtotale | M19: Suma częściowa
E20: DISCOUNT | F20: Discount | H20: Discount | I20: Descuento | J20: Remise | K20: Rabatt | L20: Sconto | M20: Rabat
E21: SHIPPING | F21: Shipping | H21: Shipping | I21: Envío | J21: Livraison | K21: Versand | L21: Spedizione | M21: Wysyłka
E22: GRAND_TOTAL | F22: Total | H22: Total | I22: Total | J22: Total | K22: Gesamt | L22: Totale | M22: Razem
E23: AMOUNT_PAID | F23: Amount Paid | H23: Amount Paid | I23: Importe pagado | J23: Montant payé | K23: Bezahlter Betrag | L23: Importo pagato | M23: Zapłacono
E24: BALANCE_DUE | F24: Balance Due | H24: Balance Due | I24: Saldo pendiente | J24: Solde dû | K24: Restbetrag | L24: Saldo dovuto | M24: Do zapłaty
E25: NOTES | F25: Notes | H25: Notes | I25: Notas | J25: Notes | K25: Anmerkungen | L25: Note | M25: Uwagi
E26: TERMS | F26: Terms & Conditions | H26: Terms & Conditions | I26: Términos y condiciones | J26: Conditions générales | K26: Geschäftsbedingungen | L26: Termini e condizioni | M26: Warunki
E27: PHONE | F27: Phone | H27: Phone | I27: Teléfono | J27: Téléphone | K27: Telefon | L27: Telefono | M27: Telefon
E28: EMAIL | F28: Email | H28: Email | I28: Correo | J28: E-mail | K28: E-Mail | L28: Email | M28: E-mail
E29: WEBSITE | F29: Web | H29: Web | I29: Web | J29: Site web | K29: Web | L29: Sito web | M29: Strona
E30: THANK_YOU | F30: Thank you for your business | H30: Thank you for your business | I30: Gracias por su confianza | J30: Merci de votre confiance | K30: Vielen Dank für Ihren Auftrag | L30: Grazie per la fiducia | M30: Dziękujemy za współpracę
E31: COL_SKU | F31: SKU | H31: SKU | I31: SKU | J31: Réf. | K31: Art.-Nr. | L31: Cod. | M31: SKU
E32: COL_DESC | F32: Description | H32: Description | I32: Descripción | J32: Description | K32: Beschreibung | L32: Descrizione | M32: Opis
E33: COL_QTY | F33: Quantity | H33: Quantity | I33: Cantidad | J33: Quantité | K33: Menge | L33: Quantità | M33: Ilość
E34: COL_UNIT | F34: Unit | H34: Unit | I34: Unidad | J34: Unité | K34: Einheit | L34: Unità | M34: Jedn.
E35: COL_PRICE | F35: Price | H35: Price | I35: Precio | J35: Prix | K35: Preis | L35: Prezzo | M35: Cena
E36: COL_AMOUNT | F36: Amount | H36: Amount | I36: Importe | J36: Montant | K36: Betrag | L36: Importo | M36: Wartość
E37: COL_COST | F37: Cost | H37: Cost | I37: Coste | J37: Coût | K37: Kosten | L37: Costo | M37: Koszt
E38: COL_MODE | F38: Mode | H38: Mode | I38: Modo | J38: Mode | K38: Modus | L38: Modalità | M38: Tryb
E39: COL_VALUE | F39: Value | H39: Value | I39: Valor | J39: Valeur | K39: Wert | L39: Valore | M39: Wartość
E40: COL_MARGIN | F40: Margin | H40: Margin | I40: Margen | J40: Marge | K40: Marge | L40: Margine | M40: Marża
E41: COL_TAXABLE | F41: Taxable | H41: Taxable | I41: Imponible | J41: Taxable | K41: Steuerpflichtig | L41: Imponibile | M41: Opodatk.
E42: TAX | F42: Tax | H42: Tax | I42: IVA | J42: TVA | K42: MwSt. | L42: IVA | M42: VAT
E43: ADJUSTMENT | F43: Adjustment | H43: Adjustment | I43: Ajuste | J43: Ajustement | K43: Anpassung | L43: Rettifica | M43: Korekta

Sheet ConfigData (hidden)
E2: Settings - system data, do not edit
E10: SettingKey | F10: SettingValue
E11: CompanyName
E12: CompanyAddr1
E13: CompanyAddr2
E14: CompanyCity
E15: CompanyState
E16: CompanyPostal
E17: CompanyCountry
E18: CompanyPhone
E19: CompanyEmail
E20: CompanyWebsite
E21: LogoPath
E22: QuotePrefix | F22: Q-
E23: InvoicePrefix | F23: INV-
E24: QuoteNextNum | F24: 1
E25: InvoiceNextNum | F25: 1
E26: NumPadding | F26: 0
E27: QuoteNumberPattern | F27: {PREFIX}{SEQ}
E28: InvoiceNumberPattern | F28: {PREFIX}{SEQ}
E29: DefaultTaxRate | F29: 5
E30: DefaultTaxLabel | F30: Tax
E31: CurrencySymbol | F31: $
E32: DateFormat | F32: mm/dd/yyyy
E33: DefaultTermsDays | F33: 30
E34: DefaultPricingMode | F34: Price
E35: DefaultItemsLabel | F35: Items
E36: DefaultUnitsLabel | F36: Quantity
E37: DefaultPriceLabel | F37: Price
E38: DefaultAmountLabel | F38: Amount
E39: DefaultShowItemName | F39: TRUE
E40: DefaultShowItemDesc | F40: TRUE
E41: DefaultShowUnits | F41: TRUE
E42: DefaultShowPrice | F42: TRUE
E43: DefaultShowAmount | F43: TRUE
E44: DefaultValidDays | F44: 30
E45: HomeCreateCollapsed | F45: 0
E46: NumberMode | F46: Sequential
E47: QuoteLastNumber | F47: IINV-10001
E48: InvoiceLastNumber | F48: INV-1007
E49: InvoiceContentW | F49: 572.25
E50: SkuColW | F50: 104.625
E51: ShowSKU | F51: Yes
E52: PdfFolder
E53: CurrencyPosition | F53: Prefix
E54: PriceColW | F54: 65.25
E55: AmountColW | F55: 70.875
E56: LanguageCode | F56: English
E57: PdfOpenAfter | F57: Yes
E58: PdfNameTemplate | F58: {Type}_{Number}
E59: ShippingTaxable | F59: FALSE
E60: AdjustmentTaxable | F60: FALSE
E61: DefaultMarginMode | F61: PerItem
E62: DefaultBlanketMargin | F62: 30
E63: ExportFolder | F63: D:\ExcelGurus\0-Excel-Gurus.com\26-06-08-ExcelGurus Quote & Invoice\Reports
E64: EmailMethod | F64: Default email app
E65: EmailQuoteBody | F65: Hi {Client}, Please find {Type} {Number} attached, for {Total}. Valid until {ValidUntil}. Thank you, {Company}
E66: EmailQuoteSubject | F66: {Type} {Number} from {Company}
E67: EmailInvoiceSubject | F67: {Type} {Number} from {Company}
E68: EmailInvoiceBody | F68: Hi {Client}, Please find {Type} {Number} attached, for {Total}. Due by {DueDate}. Thank you, {Company}
E69: EmailReminderSubject | F69: Reminder: {Type} {Number} from {Company} is overdue
E70: EmailReminderBody | F70: Hi {Client}, Our records show invoice {Number} for {Total} is now {DaysOverdue} days overdue (due {DueDate}). Please arrange payment at your earliest convenience. Thank you, {Company}
E71: DemoProductIDs
E72: DemoClientIDs
E73: DemoDocIDs
E74: DemoBrandingLoaded
E75: ShowSampleDataButton

Sheet Home (hidden)
N1: 1
N2: 21
C21: Number | D21: Client | E21: Date ▼ | F21: Status | G21: Total | H21: Balance | I21: Due date | J21: Open | K21: Duplicate | L21: Delete | M21: Remind
D22: No documents yet.

Sheet Builder (hidden)
V1: 9 | Z1: SKU1 | AA1: Product1
V2: Invoice | Z2: LBR-STD | AA2: Standard labor (per hour)
V3: INV-200009 | Z3: LBR-EMG | AA3: Emergency labor (per hour)
V4: Draft | Z4: CON-PVC2 | AA4: 2in PVC pipe (10ft length)
V5: 0 | Z5: CON-PVC4 | AA5: 4in PVC pipe (10ft length)
V6: 2 | Z6: ELE-WIRE | AA6: 12-gauge copper wire (250ft)
V7: 2026-07-23 | Z7: ELE-BRKR | AA7: 20A circuit breaker
V8: 2026-09-06 | Z8: HVAC-FLT | AA8: HVAC filter (MERV 13)
V9: TRUE | Z9: PLM-VLV | AA9: Brass shutoff valve
Z10: FAB-SHT | AA10: Steel sheet (4x8, 16ga)
V11: =SUM($K$25:$K$74)-SUM($T$25:$T$74) -> 317 | Z11: PNT-GAL | AA11: Interior paint (per gallon)
V12: =$K$76+$K$77-$V$11 -> 237 | Z12: SVC-DIAG | AA12: Diagnostic / inspection fee
V13: =IF(($K$76+$K$77)=0,0,$V$12/($K$76+$K$77)) -> 0.4277978339 | Z13: SVC-TRIP | AA13: Trip / dispatch charge
Z14: EQP-RENT | AA14: Equipment rental (per day)
Z15: MISC-DISP | AA15: Disposal / haul-away fee
V16: =($K$76+$K$77)*$V$27/100 -> 166.2 | Z16: abc123 | AA16: Test1
V17: =($K$76+$K$77)-$V$16 -> 387.8 | Z17: def | AA17: Test2
V18: PerItem
V19: ="From your per-line costs: about "&TEXT($V$12,"""$""#,##0")&" profit ("&TEXT($V$13,"0%")&" margin). Customer pays "&TEXT($K$81,"""$""#,##0")&"." -> From your per-line costs: about $237 profit (43% margin). Customer pays $562.
F24: SKU | G24: Description | H24: Quantity | I24: Unit | J24: Price | K24: Amount | P24: Taxable | Q24: Cost | R24: Mode | S24: Value | T24: Margin
F25: LBR-STD | G25: Standard labor (per hour) | H25: 5 | J25: =IF(R25="","",IF(R25="Price",IF(ISBLANK(S25),"",S25),IF(ISBLANK(Q25),"",IF(R25="Markup %",Q25*(1+S25/100),IF(R25="Margin %",IF(S25<100,Q25/(1-S25/100),0),Q25+S25))))) -> 85 | K25: =IF(OR(H25="",J25=""),"",H25*J25) -> 425 | P25: FALSE | Q25: 52 | R25: Price | S25: 85 | T25: =IF(OR(H25="",J25=""),"",(J25-Q25)*H25) -> 165
F26: ELE-BRKR | G26: 20A circuit breaker | H26: 6 | J26: 21.5 | K26: 129 | P26: TRUE | Q26: 9.5 | R26: Markup $ | S26: 12 | T26: 72
P27: FALSE | V27: 30
P28: FALSE
P29: FALSE | V29: TRUE
P30: FALSE
P31: FALSE | V31: 0
P32: FALSE | V32: 0
P33: FALSE | V33: TRUE
P34: FALSE
P35: FALSE
P36: FALSE
P37: FALSE
P38: FALSE
P39: FALSE
P40: FALSE
P41: FALSE
P42: FALSE
P43: FALSE
P44: FALSE
P45: FALSE
P46: FALSE
P47: FALSE
P48: FALSE
P49: FALSE
P50: FALSE
P51: FALSE
P52: FALSE
P53: FALSE
P54: FALSE
P55: FALSE
P56: FALSE
J57: =IF(R57="","",IF(R57="Price",IF(ISBLANK(S57),"",S57),IF(ISBLANK(Q57),"",IF(R57="Markup %",Q57*(1+S57/100),IF(R57="Margin %",IF(S57<100,Q57/(1-S57/100),0),Q57+S57))))) ->  | K57: =IF(OR(H57="",J57=""),"",H57*J57) ->  | P57: FALSE | T57: =IF(OR(H57="",J57=""),"",(J57-Q57)*H57) -> 
P58: FALSE
P59: FALSE
P60: FALSE
P61: FALSE
P62: FALSE
P63: FALSE
P64: FALSE
P65: FALSE
P66: FALSE
P67: FALSE
P68: FALSE
P69: FALSE
P70: FALSE
P71: FALSE
P72: FALSE
P73: FALSE
P74: FALSE
J75: =IF($V$29,"",IF($P$75="","","Line item tot")) ->  | K75: =IF($V$29,"",IF($P$75="","",SUM($K$25:$K$74))) ->  | Q75: ← Subtotal override (requires: 'Prices: Off')
J76: Subtotal | K76: =IF(AND(NOT($V$29),$P$75<>""),$P$75,SUM($K$25:$K$74)) -> 554 | P76: On/Off | Q76: Amount | R76: Option
J77: Discount | K77: =IF($P$77,IF($R$77="%",-$K$76*$Q$77/100,-$Q$77),0) -> 0 | P77: TRUE | Q77: 0 | R77: $
J78: Shipping | K78: =IF($P$78,$Q$78,0) -> 0 | P78: TRUE | Q78: 0 | R78: No tax
J79: Adjustment | K79: =IF($P$79,$Q$79,0) -> 0 | P79: TRUE | Q79: 0 | R79: No tax
J80: ="Tax "&$Q$80&"%" -> Tax 6.5% | K80: =IF($P$80,ROUND((IF($V$29,IF($K$76=0,0,SUMIFS($K$25:$K$74,$P$25:$P$74,TRUE)*(1-(-$K$77)/$K$76)),$K$76+$K$77)+IF($R$78="Taxable",$K$78,0)+IF($R$79="Taxable",$K$79,0))*$Q$80/100,2),0) -> 8.39 | P80: TRUE | Q80: 6.5 | R80: %
J81: Total | K81: =$K$76+$K$77+$K$78+$K$79+$K$80 -> 562.39 | P81: =IF($V$18="Blanket","Est. profit "&TEXT($V$16,"""$""#,##0")&" ("&TEXT($V$27,"0")&"%)","Profit "&TEXT($V$12,"""$""#,##0")&" ("&TEXT($V$13,"0.0%")&")") -> Profit $237 (42.8%)
J82: Amount Paid | K82: =$V$32 -> 0
J83: Balance Due | K83: =ROUND($K$81-$V$32,2) -> 562.39

Sheet Agreement (hidden)
B6: END USER LICENSE AGREEMENT
B8: EG Quote & Invoice Copyright (c) 2026 ExcelGurus, LLC. All rights reserved.
B10: IMPORTANT - READ CAREFULLY. This End User License Agreement ("Agreement") is a legal agreement between you (either an individual or a single entity, "you") and ExcelGurus, LLC ("ExcelGurus", "we", or "us") for the EG Quote & Invoice software product, including all associated files, templates, and documentation (the "Software"). By installing, activating, opening, or otherwise using the Software, you agree to be bound by the terms of this Agreement. If you do not agree, do not use the Software.
B12: 1. LICENSE GRANT. Subject to your compliance with this Agreement and payment of any applicable fees, ExcelGurus grants you a limited, non-exclusive, non-transferable, revocable license to install and use the Software on the number of computers permitted by your license, solely for your own internal business or personal purposes. A free tier, where offered, is licensed on the same terms but is limited in functionality (for example, generated documents may carry ExcelGurus branding, and certain features such as data export may be restricted).
B14: 2. RESTRICTIONS. You may NOT, and may not permit any third party to: (a) copy, reproduce, or distribute the Software except as expressly permitted herein; (b) sell, rent, lease, sublicense, lend, or otherwise transfer the Software or your license key to any third party; (c) share, publish, or disclose your license key or activation credentials; (d) use the Software on more computers than your license permits, or circumvent any license, activation, machine-count, or feature-flag limitation; (e) reverse engineer, decompile, disassemble, unlock, or otherwise attempt to derive the source code or underlying ideas of the Software, except to the extent this restriction is prohibited by applicable law; (f) modify, adapt, translate, or create derivative works based on the Software; or (g) remove, alter, or obscure any copyright, trademark, or other proprietary notices.
B16: 3. OWNERSHIP. The Software is licensed, not sold. ExcelGurus and its licensors retain all right, title, and interest in and to the Software, including all intellectual property rights. No rights are granted except as expressly set forth in this Agreement.
B18: 4. ACTIVATION AND VERIFICATION. The Software may require online activation and may periodically verify your license over the internet. You consent to the transmission of limited license and machine-identification data for these purposes. The Software may limit or disable licensed features if a valid license cannot be verified. In addition, when you first accept this Agreement, the Software sends a one-time message to ExcelGurus indicating that an installation has been activated; this message includes the Software version, an anonymous installation identifier, your IP address, and a timestamp, and is used solely to understand how many installations are in active use. It contains no personal information and no data from your spreadsheets.
B20: 5. NO WARRANTY. THE SOFTWARE IS PROVIDED "AS IS" AND "AS AVAILABLE", WITHOUT WARRANTY OF ANY KIND, EXPRESS OR IMPLIED, INCLUDING BUT NOT LIMITED TO THE IMPLIED WARRANTIES OF MERCHANTABILITY, FITNESS FOR A PARTICULAR PURPOSE, AND NON-INFRINGEMENT. EXCELGURUS DOES NOT WARRANT THAT THE SOFTWARE WILL BE ERROR-FREE OR UNINTERRUPTED, OR THAT IT WILL MEET YOUR REQUIREMENTS. YOU ASSUME THE ENTIRE RISK AS TO THE RESULTS AND PERFORMANCE OF THE SOFTWARE. YOU ARE SOLELY RESPONSIBLE FOR MAINTAINING BACKUPS OF YOUR DATA.
B22: 6. LIMITATION OF LIABILITY. TO THE MAXIMUM EXTENT PERMITTED BY APPLICABLE LAW, IN NO EVENT WILL EXCELGURUS BE LIABLE FOR ANY INDIRECT, INCIDENTAL, SPECIAL, CONSEQUENTIAL, OR PUNITIVE DAMAGES, OR FOR ANY LOSS OF PROFITS, DATA, BUSINESS, OR GOODWILL, ARISING OUT OF OR RELATED TO THE SOFTWARE OR THIS AGREEMENT, WHETHER IN CONTRACT, TORT, OR OTHERWISE, EVEN IF ADVISED OF THE POSSIBILITY OF SUCH DAMAGES. EXCELGURUS'S TOTAL CUMULATIVE LIABILITY ARISING OUT OF OR RELATED TO THE SOFTWARE OR THIS AGREEMENT WILL NOT EXCEED THE AMOUNT YOU ACTUALLY PAID TO EXCELGURUS FOR THE SOFTWARE. Some jurisdictions do not allow certain limitations, so portions of the above may not apply to you.
B24: 7. TERMINATION. This Agreement is effective until terminated. It terminates automatically if you breach any term. Upon termination, you must stop using the Software and destroy all copies in your possession. ExcelGurus may disable or revoke a license that is used in violation of this Agreement. Sections 2, 3, 5, 6, 8, and 9 survive termination.
B26: 8. GOVERNING LAW. This Agreement is governed by the laws of the State of Florida, USA, without regard to its conflict-of-laws rules. The exclusive venue for any dispute will be the state or federal courts located in Florida, and you consent to their jurisdiction.
B28: 9. ENTIRE AGREEMENT. This Agreement is the entire agreement between you and ExcelGurus regarding the Software and supersedes all prior understandings. If any provision is held unenforceable, the remaining provisions will remain in full force. Our failure to enforce any right is not a waiver of that right.
B30: By clicking "I Agree" you acknowledge that you have read this Agreement and agree to be bound by its terms.
B32: ExcelGurus, LLC - Excel-Gurus.com

Sheet Settings (hidden)
DF1: v4
C8: Company
C9: Logo: 200px by 50px maximum (will scale automatically). Accepted: .png, .jpg, .jpeg, .gif, .bmp
C13: Company name | E13: Website
CY14: S:CompanyName | DA14: S:CompanyWebsite
C16: Address line 1 | E16: Address line 2
CY17: S:CompanyAddr1 | DA17: S:CompanyAddr2
C19: City | E19: State
CY20: S:CompanyCity | DA20: S:CompanyState
C22: Postal | E22: Country
CY23: S:CompanyPostal | DA23: S:CompanyCountry
C25: Phone | E25: Email
CY26: S:CompanyPhone | DA26: S:CompanyEmail
C29: Branding
C30: Thank-you tagline
C31: Thank you for your business | CY31: L:THANK_YOU
C34: Quote / invoice defaults
C35: Numbering mode | E35: Date format
C36: Sequential | E36: mm/dd/yyyy | CY36: S:NumberMode | DA36: S:DateFormat
C38: Valid days | E38: Terms days
C39: 30 | E39: 30 | CY39: N:DefaultValidDays | DA39: N:DefaultTermsDays
C42: Currency & tax
C43: Currency symbol | E43: Symbol position
C44: $ | E44: Prefix | CY44: S:CurrencySymbol | DA44: S:CurrencyPosition
C46: Default tax rate % also editable within quote / invoice | E46: Shipping taxable also editable within quote / invoice
C47: 5 | E47: No | CY47: N:DefaultTaxRate | DA47: S:ShippingTaxable
C49: Adjustment taxable also editable within quote / invoice
C50: No | CY50: S:AdjustmentTaxable
C53: Pricing defaults
C54: Margin mode also editable within quote / invoice | E54: Blanket margin % also editable within quote / invoice
C55: Per-item | E55: 30 | CY55: S:DefaultMarginMode | DA55: N:DefaultBlanketMargin
C57: Show SKU column
C58: No | CY58: S:ShowSKU
C61: PDF / output
C62: Save folder
C66: File name template | E66: Open PDF after creating
C67: {Type}_{Number} | E67: No | CY67: S:PdfNameTemplate | DA67: S:PdfOpenAfter
C70: Available tokens:
C71: {Type} - becomes "Quote" or "Invoice"
C72: {Number} - becomes the quote / invoice number
C73: {Client} - becomes the client's name
C75: Email
C76: Email method
C77: Default email app | CY77: S:EmailMethod
C79: Available tokens:
C80: {Type} - becomes "Quote" or "Invoice"
C81: {Number} - the quote / invoice number
C82: {Client} - the client's name
C83: {Total} - the amount owed, formatted
C84: {Company} - your business name
C85: {Date} - the document date
C86: {ValidUntil} - quote valid-until date (blank on invoices)
C87: {DueDate} - invoice due date (blank on quotes)
C89: Quote subject
C90: {Type} {Number} from {Company}
C92: Quote body
C93: Hi {Client}, Please find {Type} {Number} attached, for {Total}. Valid until {ValidUntil}. Thank you, {Company}
C104: Invoice subject
C105: {Type} {Number} from {Company}
C107: Invoice body
C108: Hi {Client}, Please find {Type} {Number} attached, for {Total}. Due by {DueDate}. Thank you, {Company}
C121: Reminder subject (overdue invoices)
C122: Reminder: {Type} {Number} from {Company} is overdue
C124: Reminder body (overdue invoices)
C125: Hi {Client}, Our records show invoice {Number} for {Total} is now {DaysOverdue} days overdue (due {DueDate}). Please arrange payment at your earliest convenience. Thank you, {Company}
C139: Language: Fills the quote / invoice labels - still editable per label in Labels & language editor.
C141: Language
C142: English | CY142: S:LanguageCode
C145: More

Sheet Clients (hidden)
BH1: 0
B10: Company | C10: Contact | D10: Email | E10: Phone | F10: Addr1 | G10: Addr2 | H10: City | I10: State | J10: Postal | K10: Country | L10: Terms | M10: Notes | N10: Edit | O10: Archive
B11: No active clients.

Sheet Products (hidden)
BH1: 0
B10: SKU | C10: Category | D10: Description | E10: Cost | F10: Price | G10: Pricing mode | H10: Value | I10: Taxable | J10: Edit | K10: Archive
B11: No active products.

Sheet Labels (hidden)
B6: Language: | D6: English | F6: Pick a language to fill the middle column. Your text (right) always wins on the document.
B9: Label | D9: Default (English) | F9: English (translation) | H9: Your text (override)
B10: Document titles
B11: Quote title | D11: Quote | F11: Quote | BH11: QUOTE_TITLE
B12: Invoice title | D12: Invoice | F12: Invoice | BH12: INVOICE_TITLE
B13: Parties
B14: Bill-to heading | D14: Bill To | F14: Bill To | BH14: BILL_TO
B15: Ship-to heading | D15: Ship To | F15: Ship To | BH15: SHIP_TO
B16: Document info
B17: Number label | D17: Number | F17: Number | BH17: DOC_NUMBER
B18: Date label | D18: Date | F18: Date | BH18: DOC_DATE
B19: Due-date label | D19: Due Date | F19: Due Date | BH19: DUE_DATE
B20: Valid-until label | D20: Valid Until | F20: Valid Until | BH20: VALID_UNTIL
B21: Line item headers
B22: SKU column | D22: SKU | F22: SKU | BH22: COL_SKU
B23: Description column | D23: Description | F23: Description | BH23: COL_DESC
B24: Quantity column | D24: Quantity | F24: Quantity | BH24: COL_QTY
B25: Unit column | D25: Unit | F25: Unit | BH25: COL_UNIT
B26: Price column | D26: Price | F26: Price | BH26: COL_PRICE
B27: Amount column | D27: Amount | F27: Amount | BH27: COL_AMOUNT
B28: Taxable column | D28: Taxable | F28: Taxable | BH28: COL_TAXABLE
B29: Totals
B30: Subtotal | D30: Subtotal | F30: Subtotal | BH30: SUBTOTAL
B31: Discount | D31: Discount | F31: Discount | BH31: DISCOUNT
B32: Shipping | D32: Shipping | F32: Shipping | BH32: SHIPPING
B33: Adjustment | D33: Adjustment | F33: Adjustment | BH33: ADJUSTMENT
B34: Tax | D34: Tax | F34: Tax | BH34: TAX
B35: Total | D35: Total | F35: Total | BH35: GRAND_TOTAL
B36: Amount paid | D36: Amount Paid | F36: Amount Paid | BH36: AMOUNT_PAID
B37: Balance due | D37: Balance Due | F37: Balance Due | BH37: BALANCE_DUE
B38: Footer
B39: Notes heading | D39: Notes | F39: Notes | BH39: NOTES
B40: Terms heading | D40: Terms & Conditions | F40: Terms & Conditions | BH40: TERMS
B41: Thank-you message | D41: Thank you for your business | F41: Thank you for your business | BH41: THANK_YOU
B42: Contact
B43: Phone label | D43: Phone | F43: Phone | BH43: PHONE
B44: Email label | D44: Email | F44: Email | BH44: EMAIL
B45: Website label | D45: Web | F45: Web | BH45: WEBSITE
B46: Admin (internal - not printed)
B47: Cost column | D47: Cost | F47: Cost | BH47: COL_COST
B48: Mode column | D48: Mode | F48: Mode | BH48: COL_MODE
B49: Value column | D49: Value | F49: Value | BH49: COL_VALUE
B50: Margin column | D50: Margin | F50: Margin | BH50: COL_MARGIN

Sheet About (hidden)

Sheet Reports (hidden)
